bitfinex/quotes_ETHUSD_20240530
["timestamp","ask_amount","ask_price","bid_price","bid_amount"]
[1717031250551,2.6603,3759.0,3758.0,2.66096]
[1717031251041,2.35180014,3758.9,3758.0,2.66096]
[1717031253375,3.21046,3758.8,3757.6,3.1676956]
[1717031253719,2.66062,3758.6,3757.6,2.66123]
[1717031253924,2.66062,3758.6,3757.5,1.943]
[1717031253925,2.66075,3758.4,3757.5,1.943]
[1717031254463,2.66075,3758.4,3757.5,4.60431]
[1717031254670,0.0346403,3758.3,3757.5,4.60431]
[1717031254838,0.0346403,3758.3,3757.5,5.207441]
[1717031257411,0.0346403,3758.3,3757.5,4.60431]
[1717031258303,0.0346403,3758.3,3757.5,2.66131]
[1717031261266,2.3607,3758.2,3757.1,2.66157]
[1717031261514,0.03453994,3758.1,3757.1,2.66157]
[1717031262009,2.3607,3758.2,3757.1,2.66157]
[1717031262197,2.917845,3758.2,3757.1,2.66157]
[1717031262365,0.03453994,3758.1,3757.1,2.66157]
[1717031263194,2.69548994,3758.1,3757.1,2.66157]
[1717031268295,2.69548994,3758.1,3757.3,2.66147]
[1717031268513,0.03453994,3758.1,3757.3,2.66147]
[1717031268719,2.66068,3758.5,3757.5,2.66133]
[1717031268921,0.03413098,3758.0,3757.5,2.66133]
[1717031269121,2.66068,3758.5,3757.5,2.66133]
[1717031269306,0.03413098,3757.9,3757.5,2.66133]
[1717031269626,2.66068,3758.5,3757.6,0.5013177]
[1717031269795,0.03413098,3757.8,3757.7,2.6612]
[1717031270437,2.66068,3758.5,3757.7,2.6612]
[1717031270582,0.03413098,3757.8,3757.7,2.6612]
[1717031270928,0.03413098,3757.8,3757.7,4.6042]
[1717031271122,0.57580321,3758.8,3757.7,5.15563647]
[1717031271323,3.23619321,3758.9,3757.7,5.15563647]
[1717031271512,0.03434291,3758.7,3757.7,5.15563647]
[1717031271822,0.03434291,3758.7,3758.0,2.66092]
[1717031272185,2.66039,3758.9,3758.0,3.17645565]
[1717031272388,0.03455855,3758.6,3758.0,3.17645565]
[1717031272697,0.03455855,3758.5,3758.2,2.66079]
[1717031272909,0.575786,3759.2,3758.2,2.66079]
[1717031273285,0.03461801,3759.1,3758.2,2.66079]
[1717031273485,0.575786,3759.2,3758.2,3.31542257]
[1717031273725,2.66011,3759.3,3758.2,3.31542257]
[1717031273726,0.03461801,3759.1,3758.2,3.31542257]
[1717031273928,0.575786,3759.2,3758.2,3.31542257]
[1717031274110,0.03461801,3759.0,3758.2,3.31542257]
[1717031274287,2.65978,3759.7,3758.5,4.60356]
[1717031274488,0.61036615,3759.5,3758.6,0.460356]
[1717031274693,0.03461801,3759.5,3758.6,0.460356]
[1717031275420,0.57569104,3759.6,3758.6,0.460356]
[1717031275625,0.03472952,3759.4,3758.6,0.460356]
[1717031275978,0.03481128,3759.3,3758.6,0.460356]
[1717031276229,0.5757006,3759.6,3758.6,0.460356]
[1717031276431,0.03481128,3759.2,3758.6,0.460356]
[1717031276631,2.65978,3759.7,3758.7,0.5063916]
[1717031276821,0.03481128,3759.1,3758.5,4.60356]
[1717031276990,0.03481128,3759.1,3758.2,1.95252479]
[1717031276991,2.352,3759.2,3758.2,0.65463257]
[1717031277196,0.03481128,3759.0,3758.1,2.66089]
[1717031277431,2.352,3759.2,3758.1,2.66089]
[1717031277638,0.03481128,3758.9,3758.1,2.66089]
[1717031277947,2.352,3759.2,3758.1,2.66089]
[1717031278090,2.66022,3759.1,3758.1,2.66089]
[1717031278293,0.03481128,3759.0,3758.1,2.66089]
[1717031283527,0.03481128,3759.0,3758.4,2.66067]
[1717031283831,3.0,3759.4,3758.4,2.66067]
[1717031284033,0.03488188,3758.9,3758.4,2.66067]
[1717031284338,0.03488188,3758.9,3758.7,2.66046]
[1717031284542,2.65995,3759.5,3758.7,2.66046]
[1717031284847,0.03482985,3758.8,3758.7,2.66046]
[1717031284994,3.0,3760.0,3758.5,0.603067]
[1717031284995,7.38,3759.7,3759.0,2.66023]
[1717031285199,2.2881,3760.1,3759.0,6.03023]
[1717031285404,0.03482985,3759.6,3759.2,2.66007]
[1717031285712,2.65937,3760.3,3759.2,2.66007]
[1717031285906,0.03482985,3760.2,3759.2,2.66007]
[1717031287437,2.65954,3760.1,3759.2,2.66007]
[1717031287636,2.273,3759.8,3758.8,2.6604]
[1717031287838,0.548266,3759.7,3758.8,2.6604]
[1717031288052,0.58513455,3759.7,3758.8,2.6604]
[1717031288264,3.24495455,3759.7,3758.8,2.6604]
[1717031291345,0.03513455,3759.7,3759.1,2.66016]
[1717031291933,0.03524604,3759.6,3759.1,2.66016]
[1717031292137,2.65954,3760.1,3759.1,2.66016]
[1717031292350,0.03524604,3759.5,3759.2,0.266016]
[1717031292550,2.65954,3760.1,3759.2,0.266016]
[1717031292754,0.03524604,3759.4,3759.2,0.266016]
[1717031292956,2.65954,3760.1,3759.2,0.266016]
[1717031293153,0.03524604,3759.3,3759.2,0.266016]
[1717031293355,2.4428,3760.3,3759.4,2.65997]
[1717031293656,10.03926,3760.5,3759.4,2.65997]
[1717031293657,3.0,3760.4,3759.4,2.65997]
[1717031293955,2.65946,3760.2,3759.4,2.65997]
[1717031294650,0.03522747,3760.1,3759.4,2.65997]
[1717031300352,0.03522747,3760.1,3759.5,1.427]
[1717031300752,2.6592,3760.6,3759.6,2.65985]
[1717031300951,0.03522747,3760.0,3759.7,0.53847422]
[1717031301250,2.6592,3760.6,3759.7,0.53847422]
[1717031301440,0.03522747,3759.9,3759.8,3.95760222]
[1717031301645,0.57553105,3760.9,3760.4,2.65926]
[1717031301991,2.65863,3761.4,3760.4,2.65926]
[1717031301992,0.03418044,3760.8,3760.4,2.65926]
[1717031302130,0.03418044,3760.8,3760.4,2.925186]
[1717031302338,2.65863,3761.4,3760.4,2.925186]
[1717031302543,0.03444791,3761.3,3760.4,2.925186]
[1717031302742,2.65863,3761.4,3760.4,2.925186]
[1717031302970,0.03444791,3761.3,3760.4,2.65926]
[1717031303484,2.65863,3761.4,3760.4,2.65926]
[1717031304005,2.65873,3761.2,3760.4,2.65926]
[1717031304685,0.03444791,3761.1,3760.4,2.65926]
[1717031307842,0.03444791,3761.1,3760.5,0.01927548]
[1717031308046,0.03444791,3761.1,3760.6,0.26785355]
[1717031308243,2.65847,3761.6,3760.7,0.01927445]
[1717031308463,0.03478214,3761.0,3760.7,0.01927445]
[1717031308662,0.55,3761.5,3760.7,0.01927445]
[1717031309268,0.03478588,3761.4,3760.7,0.01927445]
[1717031309456,0.03478588,3761.4,3760.7,0.65091325]
[1717031309654,0.03478588,3761.4,3760.7,3.2906588]
[1717031310070,2.65847,3761.6,3760.7,3.2906588]
[1717031310608,0.03503097,3761.5,3760.7,3.2906588]
[1717031316506,0.03503097,3761.5,3760.8,0.01944185]
[1717031316679,0.03503097,3761.5,3760.9,0.50049542]
[1717031317603,0.03503097,3761.5,3761.0,0.01944081]
[1717031317774,0.03503097,3761.5,3760.9,0.51993623]
[1717031318611,0.03503097,3761.5,3760.9,0.50049542]
[1717031319264,0.03503097,3761.5,3760.7,3.2906588]
[1717031319609,0.03503097,3761.5,3760.7,2.65902]
[1717031319979,0.03503097,3761.5,3760.3,2.65932]
[1717031320203,0.03503097,3761.5,3760.3,3.95721222]
[1717031320409,2.65862,3761.4,3760.3,2.65932]
[1717031320634,0.55,3761.3,3759.9,2.6596]
[1717031320903,0.90986379,3761.3,3759.9,4.03086402]
[1717031321869,2.65882,3761.1,3759.9,4.03086402]
[1717031322301,0.03540336,3761.0,3759.9,4.03086402]
[1717031322468,2.65893,3760.9,3759.9,4.03086402]
[1717031322683,2.65893,3760.9,3760.0,1.31409042]
[1717031323183,0.03540336,3760.8,3759.9,2.6596]
[1717031326891,3.20869,3761.3,3760.2,2.65943]
[1717031327431,0.03525115,3761.2,3760.2,2.65943]
[1717031329483,2.65881,3761.1,3760.2,2.65943]
[1717031329986,0.03533283,3761.0,3760.2,2.65943]
[1717031330328,0.03533283,3761.0,3760.3,0.460243]
[1717031332905,0.03533283,3761.0,3760.0,1.943]
[1717031333547,2.65894,3760.9,3759.8,4.08669]
[1717031333838,0.03511753,3760.8,3759.8,5.38458222]
[1717031334348,2.65908,3760.7,3759.8,2.65969]
[1717031334549,2.294,3760.6,3759.8,2.65969]
[1717031334719,2.294,3760.6,3759.4,7.08694]
[1717031334720,2.69437753,3760.5,3759.4,7.08694]
[1717031334920,2.65926,3760.5,3759.5,0.902994]
[1717031335432,0.03505441,3760.4,3759.5,0.902994]
[1717031336211,2.6596,3760.0,3759.0,2.66023]
[1717031336412,2.6596,3760.0,3759.0,3.95812222]
[1717031336606,0.03496901,3759.9,3759.0,3.95812222]
[1717031338047,0.03496901,3759.9,3759.1,1.943]
[1717031338258,2.6596,3760.0,3759.2,0.73281222]
[1717031339016,0.03467937,3759.9,3759.2,0.73281222]
[1717031341164,0.03467937,3759.9,3759.2,2.03070444]
[1717031341454,2.65932,3760.4,3759.5,1.943]
[1717031341627,2.65932,3760.4,3759.5,3.24089222]
[1717031341628,0.03448994,3759.8,3759.5,3.24089222]
[1717031341824,2.65932,3760.4,3759.6,0.59009122]
[1717031342025,0.03448994,3759.7,3759.6,4.67690122]
[1717031342222,2.65932,3760.4,3759.6,4.67690122]
[1717031342611,0.03448994,3760.3,3759.6,4.67690122]
[1717031342820,0.03448994,3760.3,3759.7,0.79177934]
[1717031343416,0.03448994,3760.3,3759.8,2.65966]
[1717031343635,0.03448994,3760.3,3759.8,3.95755222]
[1717031343851,2.65905,3760.8,3760.0,2.65956]
[1717031344154,0.03467938,3760.2,3760.0,2.65956]
[1717031344327,2.65905,3760.8,3760.1,0.59004522]
[1717031344729,0.03478704,3760.7,3760.1,0.59004522]
[1717031345852,2.65876,3761.2,3760.2,3.95725222]
[1717031346155,0.03478704,3760.6,3760.4,2.65928]
[1717031346456,2.65876,3761.2,3760.5,0.53841722]
[1717031353968,0.03478704,3761.1,3760.5,0.53841722]
[1717031356033,2.4285,3761.5,3760.5,0.53841722]
[1717031356282,0.03485758,3761.0,3760.5,0.53841722]
[1717031356453,2.4285,3761.5,3760.9,0.807]
[1717031361479,2.65847,3761.6,3760.9,0.807]
[1717031362102,2.65847,3761.6,3761.1,0.807]
[1717031362458,0.57539709,3761.9,3761.1,0.807]
[1717031362895,3.23360709,3762.0,3761.2,0.01623439]
[1717031363105,3.23360709,3762.0,3761.1,0.807]
[1717031363291,2.65821,3762.0,3761.1,0.807]
[1717031363690,2.65821,3762.0,3761.3,0.807]
[1717031365100,0.31251347,3763.4,3761.3,0.807]
[1717031365101,2.65768,3762.7,3761.9,0.807]
[1717031365308,4.96238,3762.7,3762.1,0.807]
[1717031365509,4.96238,3762.7,3761.5,1.427]
[1717031365802,4.96238,3762.7,3761.9,0.807]
[1717031366007,5.539318,3762.7,3761.9,0.807]
[1717031366406,5.539318,3762.7,3761.5,1.427]
[1717031367894,2.65793,3762.4,3761.4,2.65855]
[1717031368096,2.4297,3762.2,3761.0,2.65883]
[1717031368407,0.55,3762.1,3761.0,2.65883]
[1717031368811,0.03457342,3762.0,3761.0,2.65883]
[1717031369134,2.65826,3761.9,3761.0,2.65883]
[1717031369724,0.03457342,3761.8,3761.0,2.65883]
[1717031369899,0.03457342,3761.8,3761.0,2.924713]
[1717031378430,2.65842,3761.7,3760.6,4.08614]
[1717031378733,2.69291542,3761.7,3760.6,4.08614]
[1717031379503,2.69291542,3761.7,3760.6,5.38403222]
[1717031383373,2.69291542,3761.7,3760.9,2.6589]
[1717031384694,0.03449542,3761.7,3761.1,2.65878]
[1717031384899,5.08773,3762.2,3761.2,0.39566722]
[1717031384900,0.57533036,3762.1,3761.2,0.39566722]
[1717031385203,0.03433199,3761.6,3761.2,0.39566722]
[1717031385403,5.08773,3762.2,3761.2,0.39566722]
[1717031385598,5.08773,3762.2,3761.3,0.43523394]
[1717031386037,0.03433199,3762.1,3761.3,0.43523394]
[1717031386200,0.60962865,3762.1,3761.3,0.43523394]
[1717031388344,0.60962865,3762.1,3761.4,0.807]
[1717031390447,2.65819,3762.0,3761.4,0.807]
[1717031390619,3.23348666,3762.0,3761.4,0.807]
[1717031390944,0.03433199,3761.9,3761.4,0.807]
[1717031393068,0.60963955,3761.9,3761.4,0.807]
[1717031393208,0.03433199,3761.9,3761.4,0.807]
[1717031393413,2.65835,3761.8,3760.7,2.65903]
[1717031393706,2.65848,3761.6,3760.9,0.807]
[1717031394018,0.03440258,3761.5,3760.9,0.807]
[1717031395206,0.03440258,3761.5,3761.1,0.807]
[1717031397763,0.03440258,3761.5,3761.4,0.807]
[1717031398269,0.57533177,3762.0,3761.4,3.53189222]
[1717031398588,0.03426142,3761.5,3761.4,2.72489222]
[1717031398722,0.57526579,3762.3,3761.4,3.53189222]
[1717031399035,0.57526579,3762.3,3761.9,0.807]
[1717031399546,0.57526579,3762.4,3762.1,0.807]
[1717031399734,2.65783,3762.5,3762.1,0.807]
[1717031402057,0.57526579,3762.6,3762.1,0.807]
[1717031402258,3.23277579,3763.0,3762.2,0.05315473]
[1717031402446,4.09376337,3763.0,3762.2,0.05315473]
[1717031402761,0.57526579,3762.9,3762.2,0.05315473]
[1717031402920,0.57526579,3762.9,3762.1,0.807]
[1717031403265,2.65762,3762.8,3761.9,0.807]
[1717031403467,2.65799,3762.3,3761.1,2.65878]
[1717031403623,2.65799,3762.3,3761.4,0.807]
[1717031404029,3.23325579,3762.3,3761.4,0.807]
[1717031405465,2.65799,3762.3,3761.4,0.807]
[1717031405833,3.23324715,3762.3,3761.4,0.807]
[1717031406040,3.23324715,3762.3,3761.6,0.807]
[1717031406335,3.23324715,3762.3,3761.2,4.29789222]
[1717031406336,2.65799,3762.3,3761.2,4.29789222]
[1717031406537,2.65799,3762.3,3761.3,0.83836722]
[1717031408665,0.5752446,3762.5,3761.5,2.65848]
[1717031408866,2.9387446,3762.6,3761.5,3.95637222]
[1717031409031,2.9387446,3762.6,3761.6,0.67317394]
[1717031409227,2.9387446,3762.6,3761.7,0.02240679]
[1717031409433,2.3635,3762.6,3761.7,0.0531576]
[1717031409628,2.6577,3762.7,3761.8,3.95618222]
[1717031413741,0.03451359,3762.6,3761.8,3.95618222]
[1717031414075,0.03451359,3762.6,3761.9,0.60563562]
[1717031416372,0.03451359,3762.6,3762.0,2.65815]
[1717031416724,2.399,3763.0,3762.1,0.01807498]
[1717031416725,2.97417297,3763.0,3762.1,0.01807498]
[1717031416927,0.034547,3762.9,3762.1,0.01807498]
[1717031417125,0.034547,3762.9,3762.4,2.65787]
[1717031417467,0.57517101,3763.4,3762.5,1.29789222]
[1717031417645,0.034547,3762.8,3762.5,1.29789222]
[1717031417842,2.65712,3763.5,3762.5,1.29789222]
[1717031418251,0.034547,3763.4,3762.5,1.29789222]
[1717031418455,0.034547,3763.4,3762.6,0.59142145]
[1717031418887,0.034547,3763.4,3762.7,3.95550222]
[1717031419254,0.57506695,3763.8,3762.8,0.01705814]
[1717031419453,0.03363834,3763.3,3762.9,1.29789222]
[1717031419763,0.03384995,3763.2,3762.9,1.29789222]
[1717031419960,0.03384995,3763.2,3762.7,2.65761]
[1717031420161,2.3565,3763.5,3762.7,2.65761]
[1717031420478,0.03403182,3763.1,3762.7,2.65761]
[1717031420790,0.03421365,3763.0,3762.7,2.65761]
[1717031420991,0.03421365,3763.0,3762.6,0.53827622]
[1717031421194,2.3565,3763.5,3762.7,0.19652762]
[1717031421494,0.03421365,3762.9,3762.6,0.53827622]
[1717031421678,2.3565,3763.5,3762.6,0.53827622]
[1717031421865,0.03421365,3762.8,3762.6,0.53827622]
[1717031422064,2.3565,3763.5,3762.6,0.53827622]
[1717031422271,0.0341654,3762.7,3762.6,0.53827622]
[1717031422478,2.3565,3763.5,3762.6,0.53827622]
[1717031422796,0.0341654,3763.4,3762.6,0.53827622]
[1717031422952,0.0341654,3763.4,3762.7,0.49652762]
[1717031425687,0.0341654,3763.4,3762.8,1.29789222]
[1717031426091,2.65706,3763.6,3762.8,1.29789222]
[1717031426684,0.03415056,3763.5,3762.8,1.29789222]
[1717031428602,0.03415056,3763.5,3763.2,0.806]
[1717031430566,0.03415056,3763.5,3762.8,0.806]
[1717031430804,2.3595,3763.4,3762.8,1.25585038]
[1717031431065,0.03425819,3763.3,3762.8,0.44985038]
[1717031431267,0.03425819,3763.3,3762.8,1.25585038]
[1717031431480,0.84025819,3763.3,3762.3,0.806]
[1717031431720,2.65748,3763.0,3762.3,0.806]
[1717031431920,2.65748,3763.0,3762.5,0.806]
[1717031432093,0.03414686,3762.9,3762.5,0.806]
[1717031432481,0.03414686,3762.9,3761.8,9.80281594]
[1717031432681,0.03414686,3762.9,3762.4,0.806]
[1717031433042,2.65759,3762.8,3762.0,3.0]
[1717031433177,5.01709,3762.8,3762.2,0.806]
[1717031433605,2.65776,3762.6,3762.0,0.806]
[1717031433845,2.65776,3762.6,3762.0,1.17317975]
[1717031434062,2.65776,3762.6,3762.0,0.806]
[1717031434196,0.03384251,3762.5,3762.0,0.806]
[1717031434715,0.03384251,3762.5,3761.4,1.427]
[1717031434917,0.03384251,3762.5,3762.0,0.806]
[1717031435095,2.65776,3762.6,3762.0,0.806]
[1717031435496,2.65776,3762.6,3761.8,0.806]
[1717031435830,0.03370144,3762.5,3761.8,0.806]
[1717031436298,0.03370144,3762.5,3761.5,4.29789222]
[1717031436299,2.65776,3762.6,3761.5,4.29789222]
[1717031436501,2.65776,3762.6,3761.6,0.83834722]
[1717031436822,2.65776,3762.6,3761.7,1.29789222]
[1717031442831,2.65745,3763.0,3761.7,1.29789222]
[1717031443151,0.03348612,3762.9,3761.7,1.29789222]
[1717031443351,0.03348612,3762.9,3761.8,0.70732394]
[1717031443652,0.03348612,3762.9,3761.9,1.29789222]
[1717031446667,0.03348612,3762.9,3762.0,3.364]
[1717031446868,0.03348612,3762.9,3762.1,1.29789222]
[1717031447016,3.06495041,3763.4,3762.1,1.29789222]
[1717031447216,0.03371628,3762.8,3762.2,0.46618922]
[1717031447518,0.03371628,3762.7,3762.3,3.95580222]
[1717031447750,2.65715,3763.5,3762.3,3.95580222]
[1717031447932,0.03386849,3763.4,3762.3,3.95580222]
[1717031449333,0.03386849,3763.4,3762.7,2.65763]
[1717031449542,0.57506363,3763.8,3762.9,2.65748]
[1717031449840,0.03392416,3763.7,3763.0,1.29789222]
[1717031450235,2.65685,3763.9,3763.0,1.29789222]
[1717031450440,0.03399839,3763.6,3763.1,0.42211352]
[1717031450677,2.65685,3763.9,3763.1,0.42211352]
[1717031450877,0.03399839,3763.5,3763.1,0.42211352]
[1717031451081,2.65685,3763.9,3763.1,0.42211352]
[1717031451285,0.03399839,3763.4,3763.1,0.42211352]
[1717031451441,2.65685,3763.9,3763.2,0.43774857]
[1717031451642,0.03399839,3763.3,3763.0,1.29789222]
[1717031451889,2.65685,3763.9,3763.1,4.08438]
[1717031452060,0.03399839,3763.2,3763.1,5.38227222]
[1717031452255,2.65685,3763.9,3763.1,5.38227222]
[1717031452575,0.03435469,3763.8,3763.1,5.38227222]
[1717031452783,0.03435469,3763.8,3763.2,0.73192722]
[1717031452999,2.65657,3764.3,3763.3,1.29789222]
[1717031453159,0.03435469,3763.7,3763.3,3.23489222]
[1717031453355,2.65657,3764.3,3763.3,3.23489222]
[1717031453562,0.03434725,3764.2,3763.3,3.23489222]
[1717031453869,0.03434725,3764.2,3763.8,2.65685]
[1717031454075,0.03434725,3764.2,3764.0,1.937]
[1717031454385,2.2596,3765.0,3764.0,1.937]
[1717031454572,0.03444372,3764.9,3764.0,1.937]
[1717031455303,2.3267,3765.5,3764.0,1.937]
[1717031455304,2.3267,3765.5,3764.1,2.65667]
[1717031455476,0.03444372,3764.8,3764.1,2.65667]
[1717031455797,2.65586,3765.3,3764.1,2.65667]
[1717031455798,0.03464404,3764.7,3764.1,2.65667]
[1717031456201,2.65586,3765.3,3764.1,2.65667]
[1717031456427,0.03464404,3764.6,3764.2,3.0]
[1717031456598,2.65586,3765.3,3764.2,3.0]
[1717031457100,0.03464404,3765.2,3764.2,3.0]
[1717031458889,0.03464404,3765.2,3764.3,0.565667]
[1717031460386,2.65597,3765.1,3764.3,0.565667]
[1717031460584,2.65625,3764.7,3763.6,2.65697]
[1717031460777,0.03464404,3764.6,3763.6,3.95486222]
[1717031460999,2.65625,3764.7,3763.6,3.95486222]
[1717031461723,2.65625,3764.7,3763.7,1.29789222]
[1717031462016,2.65625,3764.7,3763.8,0.73188622]
[1717031462182,2.65625,3764.7,3763.9,1.29789222]
[1717031462725,2.65597,3765.1,3764.0,1.427]
[1717031462882,4.95789,3765.5,3764.3,1.937]
[1717031463082,0.03464404,3765.0,3764.4,1.62138144]
[1717031463287,4.95789,3765.5,3764.4,1.62138144]
[1717031463471,0.03464404,3764.9,3764.4,1.62138144]
[1717031463770,0.03495194,3764.8,3764.4,1.62138144]
[1717031464110,4.95789,3765.5,3764.4,4.27778144]
[1717031464322,2.96390125,3766.8,3765.4,1.937]
[1717031464323,0.30911125,3766.8,3765.4,1.937]
[1717031464466,0.30911125,3766.8,3765.8,1.937]
[1717031464674,0.30911125,3766.8,3765.9,1.29789222]
[1717031464997,0.30911125,3766.8,3766.0,0.58903722]
[1717031465196,0.30911125,3766.8,3766.1,1.29789222]
[1717031465976,0.30911125,3766.8,3766.1,3.95313222]
[1717031466502,0.30911125,3766.8,3766.2,1.937]
[1717031466697,0.30911125,3766.8,3766.3,1.29789222]
[1717031467012,0.30911125,3766.8,3766.4,0.58901322]
[1717031467183,0.30911125,3766.8,3766.5,1.29789222]
[1717031467374,2.65424,3767.6,3766.5,1.29789222]
[1717031467571,2.65424,3767.6,3766.1,2.65524]
[1717031467823,2.65424,3767.6,3766.2,1.29789222]
[1717031468025,2.65439,3767.4,3766.2,1.29789222]
[1717031471950,0.03360042,3767.3,3766.2,1.29789222]
[1717031474221,2.4519,3767.1,3765.6,2.65556]
[1717031474415,2.65477,3766.8,3765.6,1.29789222]
[1717031474629,2.65518,3766.3,3765.1,2.65591]
[1717031474859,2.65518,3766.3,3765.2,1.29789222]
[1717031475061,0.0344046,3766.2,3765.2,1.29789222]
[1717031475477,2.65533,3766.1,3764.6,4.59331]
[1717031475672,2.65533,3766.1,3764.7,1.29789222]
[1717031475880,2.26,3766.4,3764.8,0.79396804]
[1717031475881,2.65557,3765.7,3764.8,0.79396804]
[1717031476032,2.65557,3765.7,3764.8,2.09186026]
[1717031477973,2.65525,3766.2,3764.9,1.29789222]
[1717031478273,0.03146011,3766.1,3765.4,1.937]
[1717031478446,0.03146011,3766.1,3765.5,1.49159222]
[1717031478648,2.65489,3766.7,3765.5,1.49159222]
[1717031478845,0.03151209,3766.0,3765.5,1.49159222]
[1717031479057,2.65489,3766.7,3765.5,1.49159222]
[1717031479361,2.65489,3766.7,3765.6,0.60843122]
[1717031479530,7.38,3767.8,3765.8,2.65541]
[1717031479531,0.03171623,3766.6,3765.8,2.65541]
[1717031479734,0.03171623,3766.6,3765.9,1.29789222]
[1717031479989,2.389,3767.5,3765.9,1.29789222]
[1717031479990,2.65477,3766.8,3765.9,1.29789222]
[1717031480285,0.03171623,3766.7,3765.6,0.60843122]
[1717031480583,2.65477,3766.8,3765.7,1.87180534]
[1717031480733,0.03171623,3766.7,3765.7,1.87180534]
[1717031480934,2.65477,3766.8,3765.7,1.87180534]
[1717031483346,2.65477,3766.8,3765.7,4.52733534]
[1717031484248,2.65449,3767.2,3766.0,2.65527]
[1717031484447,2.65407,3767.8,3766.2,3.23489222]
[1717031485063,0.03171623,3767.7,3766.7,2.65483]
[1717031485274,0.03171623,3767.7,3766.8,1.29789222]
[1717031485494,2.65426,3767.6,3766.7,1.29789222]
[1717031485867,0.03196111,3767.5,3766.7,1.29789222]
[1717031487357,0.03196111,3767.5,3766.8,1.29789222]
[1717031489998,0.03196111,3767.5,3766.9,0.58897222]
[1717031490289,0.03196111,3767.5,3767.0,1.29789222]
[1717031490465,0.03196111,3767.5,3766.9,1.88686444]
[1717031491693,0.03196111,3767.5,3766.9,0.58897222]
[1717031491872,0.03196111,3767.5,3766.7,2.65483]
[1717031492054,0.03196111,3767.5,3766.7,3.95272222]
[1717031492255,2.65449,3767.2,3765.9,7.14456594]
[1717031492459,2.65449,3767.2,3766.0,1.29789222]
[1717031492697,0.03242867,3767.1,3766.1,0.47862489]
[1717031493002,2.65469,3767.0,3766.1,1.77651711]
[1717031493419,0.03242867,3766.9,3766.1,1.77651711]
[1717031496227,0.03242867,3766.9,3766.1,1.29789222]
[1717031496527,0.03242867,3766.9,3765.5,3.0]
[1717031496528,2.65483,3766.8,3765.5,3.0]
[1717031496689,2.65483,3766.8,3765.6,1.29789222]
[1717031497043,2.65499,3766.5,3765.6,1.29789222]
[1717031497179,2.65499,3766.5,3765.7,0.69536222]
[1717031497379,2.65499,3766.5,3765.8,1.29789222]
[1717031497678,0.03213926,3766.4,3765.8,1.29789222]
[1717031497879,2.3851,3766.3,3765.7,0.69536222]
[1717031498125,2.6552,3766.2,3765.4,2.65573]
[1717031498329,2.6552,3766.2,3765.5,1.29789222]
[1717031500345,2.6552,3766.2,3765.2,3.0]
[1717031500497,2.6552,3766.2,3765.3,1.29789222]
[1717031500706,2.6552,3766.2,3765.4,1.14424582]
[1717031501293,2.65545,3765.9,3765.4,1.14424582]
[1717031501493,2.65545,3765.9,3764.8,2.65614]
[1717031501723,0.03188696,3765.8,3764.9,4.29789222]
[1717031501926,2.65545,3765.9,3764.9,4.29789222]
[1717031502147,0.03188696,3765.7,3765.0,2.65603]
[1717031502456,5.04025,3766.3,3765.2,2.65587]
[1717031502457,0.03188696,3765.6,3765.2,2.65587]
[1717031502591,0.03188696,3765.6,3765.3,1.29789222]
[1717031502790,5.04025,3766.3,3765.3,1.29789222]
[1717031502995,0.03178676,3766.2,3765.3,1.29789222]
[1717031504009,2.65526,3766.1,3765.3,1.29789222]
[1717031504196,2.65526,3766.1,3765.4,0.46491544]
[1717031504397,2.65546,3765.9,3765.1,0.69539222]
[1717031504697,2.65546,3765.9,3765.1,1.29789222]
[1717031505235,2.65546,3765.9,3764.8,2.65616]
[1717031505236,2.65555,3765.7,3764.8,2.65616]
[1717031505451,2.65572,3765.5,3764.9,1.29789222]
[1717031505950,0.03171995,3765.4,3764.9,1.29789222]
[1717031513091,0.03171995,3765.4,3765.0,0.39540222]
[1717031513411,0.03143043,3765.3,3765.1,1.29789222]
[1717031513636,2.65535,3766.0,3765.1,1.29789222]
[1717031514011,0.03143043,3765.9,3765.1,1.29789222]
[1717031514395,0.03143043,3765.9,3765.2,2.65586]
[1717031514737,0.03143043,3765.9,3765.3,1.74709787]
[1717031515030,0.03143043,3765.9,3765.3,1.76154416]
[1717031515526,0.03143043,3765.9,3765.4,2.65575]
[1717031515818,2.4678,3766.2,3765.5,1.29789222]
[1717031516107,0.03143043,3766.1,3765.5,1.29789222]
[1717031516401,0.03143043,3766.1,3765.6,0.43885577]
[1717031517968,0.03143043,3766.1,3765.7,1.29789222]
[1717031518137,0.03143043,3766.1,3765.7,3.95339222]
[1717031518427,0.03188324,3766.0,3765.7,3.95339222]
[1717031518596,2.4881,3766.6,3765.7,3.95339222]
[1717031518775,2.4881,3766.6,3765.7,4.39261702]
[1717031519116,0.03195374,3766.5,3765.7,4.39261702]
[1717031521695,2.65481,3766.8,3765.7,4.39261702]
[1717031522318,0.03202795,3766.7,3766.0,2.6553]
[1717031522496,0.03202795,3766.7,3766.1,1.29789222]
[1717031522693,0.03202795,3766.7,3766.2,0.39531922]
[1717031526306,0.03202795,3766.7,3766.1,1.29789222]
[1717031526689,2.65481,3766.8,3766.1,1.29789222]
[1717031527114,0.03219122,3766.7,3766.1,1.29789222]
[1717031527519,2.65481,3766.8,3766.1,1.29789222]
[1717031528048,0.03219122,3766.7,3766.1,1.29789222]
[1717031528238,2.65481,3766.8,3766.2,0.39531922]
[1717031528549,0.03219122,3766.7,3766.2,0.39531922]
[1717031529138,2.394,3767.0,3766.2,0.39531922]
[1717031529353,0.03219122,3766.6,3766.2,0.39531922]
[1717031529530,2.394,3767.0,3766.2,0.39531922]
[1717031529714,0.03219122,3766.5,3766.2,0.39531922]
[1717031530045,2.65453,3767.2,3766.3,4.38783336]
[1717031530046,0.03219122,3766.4,3766.3,4.38783336]
[1717031530253,2.65453,3767.2,3766.3,4.38783336]
[1717031530458,0.03219122,3767.1,3766.3,4.38783336]
[1717031533041,2.65423,3767.6,3766.5,2.65496]
[1717031533245,0.03227285,3767.5,3766.6,1.87936256]
[1717031533828,2.4755,3767.8,3766.6,1.87936256]
[1717031533829,5.12963,3767.8,3766.8,2.65472]
[1717031534030,0.03258816,3767.7,3766.8,3.95261222]
[1717031534972,0.03258816,3767.7,3766.9,1.29789222]
[1717031536763,0.03258816,3767.7,3767.0,2.65459]